[Event "Baden Youth-ch 2020"]
[Site "Karlsruhe-Durlach"]
[Date "2020.01.03"]
[Round "2.10"]
[White "Grining, Maria"]
[Black "Ehmann, Johanna"]
[Result "1/2-1/2"]
[ECO "D40"]
[WhiteElo "1744"]
[BlackElo "1846"]
[Annotator "NA RC"]
[PlyCount "44"]
[EventDate "2020.01.02"]
[EventType "swiss"]
[EventCountry "GER"]
[SourceTitle "playchess.com"]
[Source "ChessBase"]
[SourceQuality "1"]
[TimeControl "5400+30"]

1. d4 {[%emt 0:00:00]} d5 {[%emt 0:00:00]} 2. Nf3 {[%emt 0:00:00]} e6 {[%emt 0:00:00]} 3. e3 {[%emt 0:00:00]} c5 {[%emt 0:00:21]} 4. c4 {[%emt 0:00:00]} cxd4 {[%emt 0:00:33]} 5. exd4 {[%emt 0:00:04]} Nf6 {[%emt 0:00:21]} 6. Nc3 {[%emt 0:00:42]} Be7 {[%emt 0:00:43]} 7. Bd3 {[%emt 0:00:58]} dxc4 {[%emt 0:00:17]} 8. Bxc4 {[%emt 0:00:10]} O-O {[%emt 0:00:15]} 9. O-O {[%emt 0:00:18]} a6 {[%emt 0:00:58]} 10. b3 {[%emt 0:03:34]} b5 {[%emt 0:04:18]} 11. Be2 {[%emt 0:00:45]} Bb7 {[%emt 0:01:21]} 12. Bb2 {[%emt 0:00:49]} Nbd7 {[%emt 0:02:42]} 13. Ne5 {[%emt 0:10:45]} Nb6 {[%emt 0:04:46]} 14. Rc1 {[%emt 0:02:06]} Rc8 {[%emt 0:09:51]} 15. Bf3 {[%emt 0:02:28]} Nfd5 {[%emt 0:10:23]} 16. Ne4 $11 {[%emt 0:06:33]} Ba8 {[%emt 0:09:19]} 17. Nc5 {[%emt 0:05:56]} Bg5 {[%emt 0:08:21]} 18. Ra1 {[%emt 0:04:02]} Nc7 {[%emt 0:04:35]} 19. Nb7 {[%emt 0:19:30]} Qe7 {[%emt 0:09:33]} 20. Nc6 {[%emt 0:01:59]} Qd7 {[%emt 0:03:32]} 21. Ne5 {[%emt 0:17:53]} Qe7 {[%emt 0:00:43]} 22. Nc6 {[%emt 0:00:27]} Qd7 {[%emt 0:00:07]} 1/2-1/2

[Event "Baden Youth-ch 2020"]
[Site "Karlsruhe-Durlach"]
[Date "2020.01.03"]
[Round "3.1"]
[White "Ljuca, Semir"]
[Black "Hecht, Jonas"]
[Result "0-1"]
[ECO "C92"]
[WhiteElo "1397"]
[BlackElo "1754"]
[Annotator "NA"]
[PlyCount "88"]
[EventDate "2020.01.02"]
[EventType "swiss"]
[EventCountry "GER"]
[SourceTitle "playchess.com"]
[Source "ChessBase"]
[SourceQuality "1"]
[TimeControl "5400+30"]

1. e4 {[%emt 0:00:00]} e5 {[%emt 0:00:00]} 2. Nf3 {[%emt 0:00:00]} Nc6 {[%emt 0:00:00]} 3. Bb5 {[%emt 0:00:00]} a6 {[%emt 0:00:00]} 4. Ba4 {[%emt 0:00:00]} Nf6 {[%emt 0:00:08]} 5. O-O {[%emt 0:00:04]} d6 {[%emt 0:00:45]} 6. Re1 {[%emt 0:00:32]} b5 {[%emt 0:00:16]} 7. Bb3 {[%emt 0:00:06]} Be7 {[%emt 0:00:04]} 8. c3 {[%emt 0:00:21]} O-O {[%emt 0:00:28]} 9. h3 {[%emt 0:01:47]} Na5 {[%emt 0:04:15]} 10. Bc2 {[%emt 0:00:26]} c5 {[%emt 0:00:23]} 11. d3 {[%emt 0:01:14]} Qc7 {[%emt 0:01:52]} 12. Nbd2 {[%emt 0:03:31]} Bb7 {[%emt 0:02:44]} 13. Nf1 {[%emt 0:02:26]} Rfe8 {[%emt 0:05:11]} 14. Ng3 {[%emt 0:03:13]} Bf8 {[%emt 0:01:36]} 15. Bg5 {[%emt 0:03:49]} Qd8 {[%emt 0:05:04]} 16. Qd2 {[%emt 0:06:52]} h6 {[%emt 0:05:08]} 17. Bh4 {[%emt 0:01:25]} Bc8 {[%emt 0:03:01]} 18. b4 {[%emt 0:05:51]} cxb4 {[%emt 0:01:56]} 19. cxb4 {[%emt 0:00:10]} Nc6 {[%emt 0:00:40]} 20. Bb3 {[%emt 0:01:44]} Be6 {[%emt 0:02:49]} 21. Bxe6 {[%emt 0:04:46]} fxe6 {[%emt 0:00:40]} 22. Nh5 {[%emt 0:04:47]} Be7 {[%emt 0:01:34]} 23. Nxf6+ {[%emt 0:00:46]} Bxf6 {[%emt 0:00:18]} 24. Bxf6 {[%emt 0:00:06]} Qxf6 {[%emt 0:00:14]} 25. Rac1 {[%emt 0:01:28]} Ne7 {[%emt 0:04:08]} 26. Re3 {[%emt 0:05:01]} Ng6 {[%emt 0:03:27]} 27. Nh2 {[%emt 0:01:42]} Nf4 {[%emt 0:02:45]} 28. Ng4 {[%emt 0:02:05]} Qg5 {[%emt 0:00:13]} 29. Kh1 {[%emt 0:01:25]} h5 {[%emt 0:00:57]} 30. g3 {[%emt 0:07:46]} hxg4 {[%emt 0:03:43]} 31. gxf4 {[%emt 0:03:08]} exf4 {[%emt 0:00:21]} 32. Rg3 {[%emt 0:02:11]} Qh6 {[%emt 0:00:18]} 33. Rg2 {[%emt 0:03:05]} f3 {[%emt 0:00:02]} 34. Qxh6 {[%emt 0:00:16]} fxg2+ {[%emt 0:00:02]} 35. Kxg2 {[%emt 0:00:11]} gxh6 {[%emt 0:00:04]} 36. hxg4 {[%emt 0:00:19]} Rac8 {[%emt 0:00:10]} 37. Rh1 {[%emt 0:00:29]} Kg7 {[%emt 0:00:09]} 38. f4 {[%emt 0:00:17]} Rc2+ {[%emt 0:00:04]} 39. Kg3 {[%emt 0:00:21]} Rd2 {[%emt 0:00:38]} 40. g5 {[%emt 0:36:20]} Rxd3+ {[%emt 0:53:53]} 41. Kg4 {[%emt 0:00:00]} hxg5 {[%emt 0:00:00]} 42. fxg5 {[%emt 0:00:00]} Rf8 {[%emt 0:00:00]} 43. Rh6 {[%emt 0:00:00]} e5 {[%emt 0:00:00]} 44. a3 {[%emt 0:00:00]} Rf4+ {[%emt 0:00:00]} 0-1

[Event "Baden Youth-ch 2020"]
[Site "Karlsruhe-Durlach"]
[Date "2020.01.03"]
[Round "3.2"]
[White "Haenselmann, Hendrik"]
[Black "Wehrle, Valentin"]
[Result "1-0"]
[ECO "B85"]
[WhiteElo "1807"]
[BlackElo "1364"]
[Annotator "NA"]
[PlyCount "59"]
[EventDate "2020.01.02"]
[EventType "swiss"]
[EventCountry "GER"]
[SourceTitle "playchess.com"]
[Source "ChessBase"]
[SourceQuality "1"]
[TimeControl "5400+30"]

1. e4 {[%emt 0:00:00]} c5 {[%emt 0:00:00]} 2. Nf3 {[%emt 0:00:00]} e6 {[%emt 0:00:00]} 3. d4 {[%emt 0:00:00]} cxd4 {[%emt 0:00:05]} 4. Nxd4 {[%emt 0:00:00]} Nf6 {[%emt 0:00:11]} 5. Nc3 {[%emt 0:00:00]} d6 {[%emt 0:00:16]} 6. Be2 {[%emt 0:00:05]} Be7 {[%emt 0:00:24]} 7. O-O {[%emt 0:00:08]} O-O {[%emt 0:00:21]} 8. Be3 {[%emt 0:00:08]} a6 {[%emt 0:01:49]} 9. a4 {[%emt 0:01:10]} Bd7 {[%emt 0:01:11]} 10. f4 {[%emt 0:00:16]} Nc6 {[%emt 0:00:44]} 11. Kh1 {[%emt 0:00:21]} Rc8 {[%emt 0:01:50]} 12. Qe1 {[%emt 0:02:04] B85: Sicilian Scheveningen: 6 Be2 a6, lines with early Be3} Nxd4 {[%emt 0:02:02]} 13. Bxd4 {[%emt 0:00:10]} Bc6 {[%emt 0:00:17]} 14. Bd3 {[%emt 0:00:48] [#]} d5 $146 {[%emt 0:01:05]} ({Predecessor:} 14... Nd7 15. Rd1 Qc7 16. Qg3 e5 17. Be3 Kh8 18. Rf3 Bf6 19. Qh3 Rce8 20. f5 d5 21. exd5 e4 22. Nxe4 Bxd5 23. Nxf6 Nxf6 {1-0 (30) Efimenko,Z (2670)-Predojevic,B (2634) Subotica 2008}) 15. e5 {[%emt 0:01:46]} Nd7 {[%emt 0:00:13]} 16. Qg3 {[%emt 0:04:14]} Bc5 {[%emt 0:00:45]} 17. Ne2 {[%emt 0:01:59]} a5 {[%emt 0:02:08]} 18. f5 {[%emt 0:05:01]} exf5 {[%emt 0:01:54]} 19. e6 {[%emt 0:01:45]} ({Weaker is} 19. Rxf5 Qe7 $14) (19. Bxf5 Bxd4 20. Nxd4 Rc7 $18) 19... Bxd4 {[%emt 0:01:52]} 20. exd7 {[%emt 0:01:42]} Bxd7 {[%emt 0:00:13]} 21. Nxd4 {[%emt 0:00:27]} g6 {[%emt 0:00:22]} 22. Nxf5 {[%emt 0:01:21]} Kh8 $2 {[%emt 0:00:44] [#]} (22... Rc6 23. Ne3 Be6) 23. Nd6 $18 {[%emt 0:01:42] Double Attack, Discovered Attack} Rb8 {[%emt 0:00:32]} 24. Nxf7+ {[%emt 0:00:33]} Rxf7 {[%emt 0:00:13]} 25. Rxf7 {[%emt 0:00:06]} Be6 {[%emt 0:00:14] [#]} 26. Rxh7+ $1 {[%emt 0:00:21]} Kg8 {[%emt 0:00:51]} 27. Qxg6+ {[%emt 0:00:26]} Kf8 {[%emt 0:00:09]} 28. Qg7+ {[%emt 0:00:07]} Ke8 {[%emt 0:00:10]} 29. Rh8+ {[%emt 0:00:06]} Bg8 {[%emt 0:00:07]} 30. Bg6# {[%emt 0:00:07]} 1-0

[Event "Baden Youth-ch 2020"]
[Site "Karlsruhe-Durlach"]
[Date "2020.01.03"]
[Round "3.3"]
[White "Schneider, Anna"]
[Black "Fischer, Darja"]
[Result "1/2-1/2"]
[ECO "B10"]
[WhiteElo "1758"]
[BlackElo "1546"]
[Annotator "NA"]
[PlyCount "100"]
[EventDate "2020.01.02"]
[EventType "swiss"]
[EventCountry "GER"]
[SourceTitle "playchess.com"]
[Source "ChessBase"]
[SourceQuality "1"]
[TimeControl "5400+30"]

1. e4 {[%emt 0:00:00]} c6 {[%emt 0:00:00]} 2. c4 {[%emt 0:00:00]} d5 {[%emt 0:00:00]} 3. exd5 {[%emt 0:00:00]} cxd5 {[%emt 0:00:00]} 4. cxd5 {[%emt 0:00:00]} Nf6 {[%emt 0:00:00]} 5. Nc3 {[%emt 0:00:00]} Nxd5 {[%emt 0:02:07]} 6. Nf3 {[%emt 0:00:00]} Nf6 {[%emt 0:02:12]} 7. d4 {[%emt 0:00:59]} Bg4 {[%emt 0:01:59]} 8. Bc4 {[%emt 0:10:16]} e6 {[%emt 0:01:21]} 9. Qa4+ {[%emt 0:01:22]} Nbd7 {[%emt 0:02:27]} 10. Ne5 {[%emt 0:03:40]} a6 {[%emt 0:03:06]} 11. Nxg4 {[%emt 0:06:38]} Nxg4 {[%emt 0:00:09]} 12. Qd1 {[%emt 0:00:45]} Ngf6 {[%emt 0:00:35]} 13. O-O {[%emt 0:00:30]} Be7 {[%emt 0:00:17]} 14. Re1 {[%emt 0:00:26]} O-O {[%emt 0:00:56]} 15. Bb3 {[%emt 0:01:57]} Nb6 {[%emt 0:02:41]} 16. Qf3 {[%emt 0:02:39]} Qd7 {[%emt 0:02:27]} 17. Bg5 {[%emt 0:01:02]} Nfd5 {[%emt 0:03:17]} 18. Nxd5 {[%emt 0:01:18]} Nxd5 {[%emt 0:00:33]} 19. Bxe7 {[%emt 0:00:37]} Nxe7 {[%emt 0:00:28]} 20. Rad1 {[%emt 0:02:02]} Rfd8 {[%emt 0:01:27]} 21. Re2 {[%emt 0:01:19]} Nd5 {[%emt 0:00:50]} 22. Bc2 {[%emt 0:01:43]} Rac8 {[%emt 0:02:12]} 23. Bb1 {[%emt 0:01:54]} Rc7 {[%emt 0:02:00]} 24. Qh3 {[%emt 0:01:39]} g6 {[%emt 0:00:58]} 25. Qh6 {[%emt 0:04:28]} Qb5 {[%emt 0:03:49]} 26. Red2 {[%emt 0:03:44]} Rdc8 {[%emt 0:01:00]} 27. Qh3 {[%emt 0:07:23]} Rc1 {[%emt 0:01:41]} 28. Qf3 {[%emt 0:03:04]} Qb4 {[%emt 0:02:49]} 29. Qe2 {[%emt 0:03:46]} Qc4 {[%emt 0:06:00]} 30. Qe1 {[%emt 0:04:52]} Rxd1 {[%emt 0:00:10]} 31. Rxd1 {[%emt 0:00:34]} Qb4 {[%emt 0:03:15]} 32. Qxb4 {[%emt 0:01:00]} Nxb4 {[%emt 0:00:06]} 33. a3 {[%emt 0:00:24]} Nd5 {[%emt 0:00:13]} 34. g3 {[%emt 0:00:36]} Kf8 {[%emt 0:00:51]} 35. Bd3 {[%emt 0:00:21]} Ke7 {[%emt 0:01:04]} 36. Kf1 {[%emt 0:00:32]} Kd6 {[%emt 0:00:47]} 37. Ke2 {[%emt 0:01:01]} Rc6 {[%emt 0:04:32]} 38. Rd2 {[%emt 0:02:06]} f6 {[%emt 0:02:38]} 39. Rc2 {[%emt 0:01:08]} Rxc2+ {[%emt 0:01:13]} 40. Bxc2 {[%emt 0:00:11]} f5 {[%emt 0:01:44]} 41. f4 {[%emt 0:04:49]} h6 {[%emt 0:01:07]} 42. Bb3 {[%emt 0:02:04]} b6 {[%emt 0:01:41]} 43. h3 {[%emt 0:01:15]} h5 {[%emt 0:00:24]} 44. Kf3 {[%emt 0:00:43]} Kc6 {[%emt 0:00:48]} 45. Bc4 {[%emt 0:01:05]} b5 {[%emt 0:00:33]} 46. Bb3 {[%emt 0:01:02]} Kd6 {[%emt 0:01:50]} 47. Bc2 {[%emt 0:01:29]} Kc6 {[%emt 0:01:05]} 48. Bb3 {[%emt 0:01:45]} Kd6 {[%emt 0:00:04]} 49. Bc2 {[%emt 0:00:31]} Kc6 {[%emt 0:00:04]} 50. Bb3 {[%emt 0:00:45]} Kd6 {[%emt 0:00:22]} 1/2-1/2

[Event "Baden Youth-ch 2020"]
[Site "Karlsruhe-Durlach"]
[Date "2020.01.03"]
[Round "3.4"]
[White "Wu, Leon"]
[Black "Dobrikov, Marco"]
[Result "0-1"]
[ECO "B94"]
[WhiteElo "2023"]
[BlackElo "2291"]
[Annotator "NA"]
[PlyCount "108"]
[EventDate "2020.01.02"]
[EventType "swiss"]
[EventCountry "GER"]
[SourceTitle "playchess.com"]
[Source "ChessBase"]
[SourceQuality "1"]
[TimeControl "5400+30"]

1. e4 {[%emt 0:00:00]} c5 {[%emt 0:00:00]} 2. Nf3 {[%emt 0:00:00]} d6 {[%emt 0:00:00]} 3. d4 {[%emt 0:00:00]} cxd4 {[%emt 0:00:00]} 4. Nxd4 {[%emt 0:00:00]} Nf6 {[%emt 0:00:00]} 5. Nc3 {[%emt 0:00:00]} a6 {[%emt 0:00:00]} 6. Bg5 {[%emt 0:00:13]} Nbd7 {[%emt 0:00:28]} 7. Qe2 {[%emt 0:00:30]} h6 {[%emt 0:00:30]} 8. Bh4 {[%emt 1:33:17]} g6 9. O-O-O {[%emt 0:00:00]} e5 {[%emt 0:00:43]} 10. Nb3 {[%emt 0:00:00]} b5 {[%emt 0:06:15]} 11. Nd5 {[%emt 0:00:00]} g5 {[%emt 0:02:25]} 12. Bg3 {[%emt 0:00:00]} Nxd5 {[%emt 0:00:25]} 13. exd5 {[%emt 0:00:00]} Be7 {[%emt 0:02:23]} 14. h4 {[%emt 0:00:00]} gxh4 {[%emt 0:01:54]} 15. Bh2 {[%emt 0:00:00]} Nf6 {[%emt 0:00:58]} 16. Qe1 {[%emt 0:00:00]} Ng4 {[%emt 0:03:50]} 17. f4 {[%emt 0:00:00]} Nxh2 $11 {[%emt 0:10:41]} 18. Rxh2 {[%emt 0:00:00]} Bg4 {[%emt 0:09:21]} 19. Be2 {[%emt 0:00:00]} h5 {[%emt 0:08:03]} 20. Bxg4 {[%emt 0:00:00]} hxg4 {[%emt 0:00:20]} 21. fxe5 {[%emt 0:00:00]} dxe5 {[%emt 0:08:01]} 22. Qxe5 {[%emt 0:07:00]} Rh6 {[%emt 0:00:10]} 23. d6 {[%emt 0:00:00]} Rxd6 {[%emt 0:00:08]} 24. Rxd6 {[%emt 0:00:00]} Qxd6 {[%emt 0:00:01]} 25. Qxd6 {[%emt 0:00:00]} Bxd6 {[%emt 0:00:03]} 26. Rxh4 {[%emt 0:00:00]} Bf4+ {[%emt 0:00:18]} 27. Kd1 {[%emt 0:00:00]} O-O-O+ {[%emt 0:00:12]} 28. Ke2 {[%emt 0:00:00]} f5 {[%emt 0:00:24]} 29. Rh7 {[%emt 0:00:00]} a5 {[%emt 0:05:12]} 30. c3 {[%emt 0:00:00]} Re8+ {[%emt 0:00:41]} 31. Kf2 {[%emt 0:00:00]} Be3+ {[%emt 0:00:38]} 32. Kg3 {[%emt 0:00:00]} a4 {[%emt 0:29:24]} 33. Nd4 {[%emt 0:00:00]} Bxd4 {[%emt 0:02:34]} 34. cxd4 {[%emt 0:00:00]} Re2 {[%emt 0:00:03]} 35. Rf7 {[%emt 0:00:00]} Rxb2 {[%emt 0:00:35]} 36. Rxf5 {[%emt 0:00:00]} Kc7 {[%emt 0:01:33]} 37. Kxg4 {[%emt 0:01:33]} Rxg2+ {[%emt 0:00:48]} 38. Kf3 {[%emt 0:00:15]} Rb2 {[%emt 0:00:05]} 39. Ke3 {[%emt 0:03:43]} Kb6 {[%emt 0:00:33]} 40. Rf6+ {[%emt 0:00:29]} Ka5 {[%emt 0:01:55]} 41. a3 {[%emt 0:01:53]} Rb3+ {[%emt 0:00:01]} 42. Kd2 {[%emt 0:00:38]} Rxa3 {[%emt 0:00:03]} 43. d5 {[%emt 0:00:06]} Ra2+ {[%emt 0:00:38]} 44. Kd3 {[%emt 0:00:21]} Ra1 {[%emt 0:00:22]} 45. Kd2 {[%emt 0:00:18]} a3 {[%emt 0:02:00]} 46. Kc2 {[%emt 0:00:41]} Rd1 {[%emt 0:00:59]} 47. Kb3 {[%emt 0:02:33]} Rd3+ {[%emt 0:01:05]} 48. Ka2 {[%emt 0:00:00]} b4 {[%emt 0:00:29]} 49. Rf5 {[%emt 0:00:01]} Ka4 {[%emt 0:00:04]} 50. Kb1 {[%emt 0:00:46]} b3 {[%emt 0:00:17]} 51. Rf4+ {[%emt 0:00:27]} Kb5 {[%emt 0:00:01]} 52. Rf1 {[%emt 0:00:33]} Rxd5 {[%emt 0:00:16]} 53. Kc1 {[%emt 0:00:13]} Kc4 {[%emt 0:00:26]} 54. Rf4+ {[%emt 0:00:33]} Kc3 {[%emt 0:00:09]} 0-1

[Event "Baden Youth-ch 2020"]
[Site "Karlsruhe-Durlach"]
[Date "2020.01.03"]
[Round "3.5"]
[White "Wu, Luka"]
[Black "Wang, Xinyuan"]
[Result "1-0"]
[ECO "B28"]
[WhiteElo "2057"]
[BlackElo "2020"]
[Annotator "NA"]
[PlyCount "127"]
[EventDate "2020.01.02"]
[EventType "swiss"]
[EventCountry "GER"]
[SourceTitle "playchess.com"]
[Source "ChessBase"]
[SourceQuality "1"]
[TimeControl "5400+30"]

1. e4 {[%emt 0:00:00]} c5 {[%emt 0:00:00]} 2. Nf3 {[%emt 0:00:00]} a6 {[%emt 0:00:00]} 3. c3 {[%emt 0:00:00]} e6 {[%emt 0:00:00]} 4. d4 {[%emt 0:00:00]} d5 {[%emt 0:00:00]} 5. e5 {[%emt 0:00:00]} Bd7 {[%emt 0:00:04]} 6. Bd3 {[%emt 0:00:00]} cxd4 {[%emt 0:00:05] B28: Sicilian: 2 Nf3 a6 (O'Kelly Variation)} 7. cxd4 {[%emt 0:00:03]} Bb5 {[%emt 0:00:04]} 8. Bc2 {[%emt 0:00:24]} Nd7 $146 {[%emt 0:01:12]} ({Predecessor:} 8... Bb4+ 9. Bd2 a5 10. a3 Bxd2+ 11. Qxd2 Ne7 12. Nc3 Ba6 13. h4 h6 14. Rh3 {1-0 (46) Eliseev,U (2582)-Artemiev,V (2673) Moscow 2016}) 9. Nc3 {[%emt 0:00:38]} Ne7 {[%emt 0:00:17]} 10. Nxb5 {[%emt 0:06:02]} axb5 {[%emt 0:00:06]} 11. O-O {[%emt 0:00:09]} Nc6 {[%emt 0:00:25]} 12. Ng5 {[%emt 0:05:36]} h6 {[%emt 0:04:40]} 13. Qh5 {[%emt 0:02:01]} hxg5 {[%emt 0:00:10]} 14. Qxh8 {[%emt 0:00:21]} Nxd4 {[%emt 0:00:16]} 15. Bd1 {[%emt 0:00:41]} Nxe5 {[%emt 0:00:34]} 16. Qh5 {[%emt 0:01:35]} Be7 {[%emt 0:00:55]} 17. Bd2 {[%emt 0:03:07]} Nc4 {[%emt 0:03:39]} 18. Bc3 {[%emt 0:00:30]} Bf6 {[%emt 0:03:27]} 19. Qg4 {[%emt 0:10:29]} (19. Re1 $15 Kf8 20. Qh7) 19... Nf5 {[%emt 0:02:08]} 20. Be2 {[%emt 0:15:49]} Nfd6 {[%emt 0:02:15]} 21. Bxf6 {[%emt 0:01:20]} Qxf6 $11 {[%emt 0:00:48]} 22. b3 {[%emt 0:16:21]} Nd2 {[%emt 0:01:03]} 23. Qb4 {[%emt 0:01:40]} Qf4 {[%emt 0:03:56]} 24. Bxb5+ {[%emt 0:05:36]} Ke7 {[%emt 0:00:24]} 25. Qxf4 {[%emt 0:00:14]} gxf4 {[%emt 0:00:07]} 26. Rfd1 {[%emt 0:00:04]} N2e4 {[%emt 0:00:53]} 27. Bd3 {[%emt 0:00:47]} Nc3 {[%emt 0:01:03]} 28. Rd2 {[%emt 0:00:50]} e5 {[%emt 0:03:13]} 29. Rc2 {[%emt 0:02:17]} d4 {[%emt 0:00:13]} 30. f3 {[%emt 0:00:15]} f5 {[%emt 0:00:24]} 31. a4 {[%emt 0:04:29]} e4 {[%emt 0:04:23]} 32. Bf1 {[%emt 0:03:03]} b5 {[%emt 0:03:09]} 33. Rd2 {[%emt 0:09:12]} d3 {[%emt 0:01:14]} 34. Re1 {[%emt 0:05:11]} Kd7 {[%emt 0:02:56]} 35. fxe4 {[%emt 0:02:09]} fxe4 {[%emt 0:00:20]} 36. axb5 {[%emt 0:00:28]} Ndxb5 {[%emt 0:03:05]} 37. Bxd3 {[%emt 0:00:16]} exd3 {[%emt 0:00:33]} 38. Rxd3+ {[%emt 0:00:03]} Kc6 {[%emt 0:01:25]} 39. Rc1 {[%emt 0:00:25]} Kc5 {[%emt 0:00:51]} 40. Rdxc3+ {[%emt 0:00:11]} Nxc3 {[%emt 0:00:10]} 41. Rxc3+ {[%emt 0:00:03]} Kb4 {[%emt 0:00:06]} 42. Rc4+ {[%emt 0:00:07]} Kxb3 {[%emt 0:01:39]} 43. Rxf4 {[%emt 0:00:04]} Kc3 {[%emt 0:00:26]} 44. Rf7 {[%emt 0:00:20]} g5 {[%emt 0:00:58]} 45. Rd7 {[%emt 0:00:08]} g4 {[%emt 0:07:44]} 46. Kf2 {[%emt 0:00:14]} Rg8 {[%emt 0:00:08]} 47. Kg3 {[%emt 0:00:06]} Kc4 {[%emt 0:00:16]} 48. Rf7 {[%emt 0:00:04]} Kd5 {[%emt 0:00:06]} 49. Rf4 {[%emt 0:00:06]} Ke5 {[%emt 0:00:08]} 50. Rxg4 {[%emt 0:00:06]} Ra8 {[%emt 0:00:06]} 51. h4 {[%emt 0:00:15]} Kf5 {[%emt 0:00:15]} 52. Rf4+ {[%emt 0:00:16]} Kg6 {[%emt 0:00:07]} 53. Kg4 {[%emt 0:00:05]} Ra5 {[%emt 0:00:17]} 54. g3 {[%emt 0:00:07]} Rb5 {[%emt 0:00:09]} 55. h5+ {[%emt 0:00:48]} Kg7 {[%emt 0:00:27]} 56. Kh4 {[%emt 0:00:20]} Kh7 {[%emt 0:00:19]} 57. g4 {[%emt 0:00:05]} Rb6 {[%emt 0:00:08]} 58. g5 {[%emt 0:00:22]} Kh8 {[%emt 0:00:07]} 59. h6 {[%emt 0:00:05]} Rb8 {[%emt 0:00:10]} 60. g6 {[%emt 0:00:53]} Rg8 {[%emt 0:00:13]} 61. g7+ {[%emt 0:01:14]} Kh7 {[%emt 0:00:30]} 62. Rf8 {[%emt 0:00:05]} Rxf8 {[%emt 0:02:04]} 63. gxf8=Q {[%emt 0:00:08]} Kg6 {[%emt 0:00:14]} 64. Kg4 {[%emt 0:00:05]} 1-0

[Event "Baden Youth-ch 2020"]
[Site "Karlsruhe-Durlach"]
[Date "2020.01.03"]
[Round "3.6"]
[White "Visvikis, Kassandra"]
[Black "Basovskiy, Jana"]
[Result "0-1"]
[ECO "B48"]
[WhiteElo "1568"]
[BlackElo "1791"]
[Annotator "NA"]
[PlyCount "44"]
[EventDate "2020.01.02"]
[EventType "swiss"]
[EventCountry "GER"]
[SourceTitle "playchess.com"]
[Source "ChessBase"]
[SourceQuality "1"]
[TimeControl "5400+30"]

1. e4 {[%emt 0:00:00]} c5 {[%emt 0:00:00]} 2. Nf3 {[%emt 0:00:00]} e6 {[%emt 0:00:00]} 3. d4 {[%emt 0:00:00]} cxd4 {[%emt 0:00:00]} 4. Nxd4 {[%emt 0:00:00]} Nc6 {[%emt 0:00:00]} 5. Nc3 {[%emt 0:00:06]} Qc7 {[%emt 0:00:00]} 6. Be3 {[%emt 0:04:03]} a6 {[%emt 0:00:08]} 7. a3 {[%emt 0:00:14]} b5 {[%emt 0:04:52]} 8. Bd3 {[%emt 0:05:32]} Bb7 {[%emt 0:01:34]} 9. f3 {[%emt 0:02:53]} Nf6 {[%emt 0:04:18]} 10. O-O {[%emt 0:03:38]} Bc5 {[%emt 0:05:13]} 11. Nf5 {[%emt 0:01:32]} Qb6 {[%emt 0:07:18]} 12. Nxg7+ {[%emt 0:04:21]} Kf8 {[%emt 0:00:21]} 13. Nxe6+ {[%emt 0:00:06]} dxe6 {[%emt 0:00:56]} 14. Bxc5+ {[%emt 0:00:07]} Qxc5+ {[%emt 0:00:04]} 15. Kh1 {[%emt 0:00:00]} Rd8 {[%emt 0:09:16]} 16. Qc1 {[%emt 0:01:45]} Ke7 {[%emt 0:01:26]} 17. f4 {[%emt 0:01:26]} Rhg8 {[%emt 0:01:39]} 18. e5 {[%emt 0:01:11]} Nxe5 {[%emt 0:01:17]} 19. Rg1 {[%emt 0:00:46]} Nxd3 {[%emt 0:01:33]} 20. cxd3 {[%emt 0:00:05]} Qf2 {[%emt 0:00:14]} 21. Qf1 {[%emt 0:02:27]} Ng4 {[%emt 0:03:04]} 22. Nd1 {[%emt 0:02:41]} Qh4 {[%emt 0:01:18]} 0-1

[Event "Baden Youth-ch 2020"]
[Site "Karlsruhe-Durlach"]
[Date "2020.01.03"]
[Round "3.7"]
[White "Metzinger, Hannes"]
[Black "Doll, Alexander"]
[Result "1-0"]
[ECO "C54"]
[WhiteElo "1903"]
[BlackElo "2127"]
[Annotator "ChessBase"]
[PlyCount "53"]
[EventDate "2020.01.02"]
[EventType "swiss"]
[EventCountry "GER"]
[SourceTitle "playchess.com"]
[Source "ChessBase"]
[SourceQuality "1"]
[TimeControl "5400+30"]

1. e4 {[%emt 0:00:00]} e5 {[%emt 0:00:00]} 2. Nf3 {[%emt 0:00:00]} Nc6 {[%emt 0:00:00]} 3. Bc4 {[%emt 0:00:00]} Bc5 {[%emt 0:00:00]} 4. c3 {[%emt 0:00:00]} Nf6 {[%emt 0:00:00]} 5. d4 {[%emt 0:00:00]} exd4 {[%emt 0:00:00]} 6. cxd4 {[%emt 0:00:00]} Bb4+ {[%emt 0:00:03]} 7. Nc3 {[%emt 0:00:00]} Nxe4 {[%emt 0:00:42]} 8. O-O {[%emt 0:00:00]} Nxc3 {[%emt 0:00:36]} 9. bxc3 {[%emt 0:00:21]} d5 {[%emt 0:00:02]} 10. cxb4 {[%emt 0:10:40]} dxc4 {[%emt 0:00:06]} 11. d5 {[%emt 0:00:05]} Ne7 {[%emt 0:01:38]} 12. Bb2 {[%emt 0:02:20]} Qxd5 {[%emt 0:06:23]} 13. Qe2 {[%emt 0:05:25]} Be6 {[%emt 0:09:07]} 14. Rad1 {[%emt 0:02:41]} Qh5 {[%emt 0:03:55]} 15. Bxg7 {[%emt 0:04:21]} Rg8 {[%emt 0:02:03]} 16. Be5 {[%emt 0:03:01]} c6 {[%emt 0:06:05]} 17. Rfe1 {[%emt 1:09:36]} a6 {[%emt 0:08:07]} 18. Bg3 {[%emt 0:00:00]} Rd8 {[%emt 0:03:50]} 19. Qe3 {[%emt 0:00:00]} Rxd1 {[%emt 0:06:50]} 20. Rxd1 {[%emt 0:00:00]} Qb5 {[%emt 0:00:39]} 21. Qf4 {[%emt 0:00:00]} Qb6 {[%emt 0:06:24]} 22. Qb8+ {[%emt 0:00:00]} Nc8 {[%emt 0:00:59]} 23. Bh4 {[%emt 0:00:00]} c3 {[%emt 0:04:26]} 24. Rd8+ {[%emt 0:00:00]} Qxd8 {[%emt 0:01:33]} 25. Bxd8 {[%emt 0:00:00]} Kxd8 {[%emt 0:01:19]} 26. Qe5 {[%emt 0:00:00]} Bxa2 {[%emt 0:03:11]} 27. Qa5+ {[%emt 0:00:00]} 1-0